Cogmind - Beta 13 @@@ ROGUE MODE // 2024.07.25 @ 16:14:55 Player: N.W.L Result: Destroyed by Y-45 Defender with Heavy Assault Rifle Performance ------------- Evolutions (1) 500 Regions Visited (2) 400 Robots Destroyed (6) 30 Value Destroyed (102) 102 Prototype IDs (1) 20 Alien Tech Used (0) 0 Bonus (200) 200 TOTAL SCORE: 1252 Bonus ------- Pacifist 200 Cogmind --------- Core Integrity 0/400 Matter 0/300 Energy 98/100 System Corruption 1% Temperature Cool (0) Movement Core (50) Location -9/Materials Parts ------- > --- POWER (1) -------- (None) > --- PROPULSION (2) --- (None) > --- UTILITY (4) ------ Hacking Suite > --- WEAPON (2) ------- Maul > --- INVENTORY (5) ---- Improved Ion Engine Small Storage Unit Improved EM Shotgun Mini Grenade Launcher Mini Grenade Launcher Peak State ------------ > --- POWER ------------ (None) > --- PROPULSION ------- (None) > --- UTILITY ---------- (None) > --- WEAPON ----------- Improved EM Shotgun Improved EM Shotgun > --- INVENTORY -------- (None) [Rating: 6] Favorites ----------- Power None Propulsion Flight Unit Flight Unit Flight Unit Utility Hacking Suite Storage Small Storage Unit Hackware Hacking Suite Weapon Improved EM Shotgun Energy Gun Improved EM Shotgun Launcher Mini Grenade Launcher Impact Weapon Maul Build | -11 -10 -9 ------- Run | Yrd Mat Mat Slots Evolved 2 | . . 2 Power . | . . . Propulsion . | . . . Utility 2 | . . 2 Weapon . | . . . Parts Attached 9 | . . 9 Power . | . . . Engine . | . . . Core . | . . . Reactor . | . . . Propulsion 2 | . . 2 Treads . | . . . Leg . | . . . Wheel . | . . . Hover . | . . . Flight 2 | . . 2 Utility 2 | . . 2 Device . | . . . Storage 1 | . . 1 Processor . | . . . Hackware 1 | . . 1 Protection . | . . . Artifact . | . . . Weapon 5 | . . 5 Energy Gun 3 | . . 3 Energy Cannon . | . . . Ballistic Gun . | . . . Ballistic Cannon . | . . . Launcher 1 | . . 1 Special Weapon . | . . . Impact Weapon 1 | . . 1 Slashing Weapon . | . . . Piercing Weapon . | . . . Special Melee Weapon . | . . . Unidentified Prototypes 1 | . . 1 Parts Lost 4 | . . 4 Power . | . . . Propulsion 2 | . . 2 Utility . | . . . Weapon 2 | . . 2 Highest Loss Streak 3 | . . 3 To Critical Strikes . | . . . Average Slot Usage (%) 19 | . . 22 Flight 2 | . . 2 Storage 1 | . . 1 Hackware 2 | . . 2 Energy Gun 10 | . . 11 Impact Weapon 2 | . . 2 Naked Turns 35 | . 22 13 Heaviest Build 8 | . . 8 Greatest Support 8 | 3 3 8 Greatest Overweight (x) 1 | . . 1 Average Overweight (x) . | . . . Largest Inventory Capacity 8 | 5 5 8 Average Capacity 5 | 5 5 5 Most Carried 7 | . . 7 Average Carried 2 | . . 3 Final Capacity 5 | 5 5 5 Final Carried 5 | . . 5 Class Distribution -------------------- 100% | Mutant Dominant Class ---------------- Mutant | -10/Materials Mutant | -9/Materials Resources | -11 -10 -9 ----------- Run | Yrd Mat Mat Matter Collected . | . . . Remotely . | . . . Salvage Created 18 | . . 18 Parts 8 | . . 8 Haulers Intercepted . | . . . Recyclers Shooed . | . . . Parts Field Recycled . | . . . Retrieved Matter . | . . . Parts Self-Destructed . | . . . Prevented . | . . . Kills | -11 -10 -9 ------- Run | Yrd Mat Mat Combat Hostiles Destroyed 4 | . . 4 AOE 4 | . . 4 Classes Destroyed 2 | . . 2 Worker 2 | . . 2 Swarmer 4 | . . 4 Best Kill Streak 4 | . . 4 Combat Bots Only 4 | . . 4 Max Kills in Single Turn 2 | . . 2 Gunslinging . | . . . Exploded 2 | . . 2 Melee . | . . . Uniques/NPCs Destroyed . | . . . Combat | -11 -10 -9 -------- Run | Yrd Mat Mat Hostile Shots Fired 54 | . . 54 Missed 19 | . . 19 Damage Taken 646 | . . 646 Core 402 | . . 402 Absorbed by Shields . | . . . Core Remaining (%) 100 | 100 100 . Volleys Fired 3 | . . 3 Largest 1 | . . 1 Hottest 30 | . . 30 Shots Fired 3 | . . 3 Gun . | . . . Cannon . | . . . Launcher 3 | . . 3 Special . | . . . Kinetic . | . . . Thermal . | . . . Explosive 3 | . . 3 Electromagnetic . | . . . Robot Hit Streak . | . . . Robot Miss Streak . | . . . Penetration Max . | . . . Secondary Targets . | . . . Shots Hit Robots 1 | . . 1 Core Hits 5 | . . 5 Critical Kills . | . . . Critical Parts Destroyed . | . . . Critical Strikes . | . . . Melee Attacks 6 | . . 6 Impact 6 | . . 6 Slashing . | . . . Piercing . | . . . Sneak Attacks 1 | . . 1 Combat Hostiles . | . . . Follow-up Attacks . | . . . Damage Inflicted 531 | . . 531 Guns . | . . . Cannons . | . . . Explosions 463 | . . 463 Melee 68 | . . 68 Ramming . | . . . Kinetic . | . . . Thermal 247 | . . 247 Explosive 216 | . . 216 Electromagnetic . | . . . Impact 68 | . . 68 Slashing . | . . . Piercing . | . . . Highest Corruption 1 | . . 1 Average Corruption 1 | . . 1 Corruption Purged . | . . . Corruption Blocked . | . . . Effects 1 | . . 1 Message Errors 1 | . . 1 Overload Shots . | . . . Overflow Damage 216 | . . 216 Projectiles . | . . . Explosions 188 | . . 188 Melee 28 | . . 28 Knockbacks 1 | . . 1 Impact 1 | . . 1 Kinetic . | . . . Secondary . | . . . Self-Inflicted Damage 209 | . . 209 Shots 4 | . . 4 Rammed . | . . . Targets Rammed . | . . . Kicked . | . . . Crushed . | . . . Highest Temperature 6 | . . 6 Average Temperature 6 | . . 6 Received Heat Transfer 204 | . . 204 Siege Activations . | . . . Robots Corrupted . | . . . Combat Hostiles . | . . . Parts Fried . | . . . Impact Corruptions 1 | . . 1 Robots Melted . | . . . Combat Hostiles . | . . . Parts Melted . | . . . Heat Transferred 150 | . . 150 Parts Sabotaged . | . . . Parts Stolen . | . . . Parts Stripped . | . . . Power Chain Reactions . | . . . Alert | -11 -10 -9 ------- Run | Yrd Mat Mat Peak Influence 396 | . . 396 Initial . | . . . Average 121 | . . 140 Maximum Alert Level 1 | . . 1 Low Security (%) 78 | 100 100 75 Level 1 21 | . . 24 Level 2 . | . . . Level 3 . | . . . Level 4 . | . . . Level 5 . | . . . High Security . | . . . Max Security . | . . . Squads Dispatched 2 | . . 2 Investigation 2 | . . 2 Extermination . | . . . Reinforcement . | . . . Assault . | . . . Garrison . | . . . Intercept . | . . . Searches Triggered . | . . . Construction Impeded . | . . . Haulers Reinforced . | . . . Active Scanning Responses . | . . . Cargo Convoy Interrupts . | . . . Stealth | -11 -10 -9 --------- Run | Yrd Mat Mat Distress Signals 2 | . . 2 Communications Jammed . | . . . Distress Signals . | . . . Times Spotted 24 | . 2 22 Peak Tracking Total 12 | . 2 12 Tactical Retreats 4 | . . 4 Traps | -11 -10 -9 ------- Run | Yrd Mat Mat Traps Triggered 1 | . . 1 Indirectly . | . . . Trap Hack Attempts . | . . . Triggered . | . . . Disarmed . | . . . Reprogrammed . | . . . Reused . | . . . Traps Extracted . | . . . Installed . | . . . Triggered . | . . . Machines | -11 -10 -9 ---------- Run | Yrd Mat Mat Machines Disabled 6 | . . 6 Max in Single Turn 5 | . . 5 Machines Repaired . | . . . Machines Dismantled . | . . . Machines Sabotaged . | . . . Overloaded Fab Kills . | . . . Hacking | -11 -10 -9 --------- Run | Yrd Mat Mat Machines Accessed 2 | . . 2 Terminals 2 | . . 2 Fabricators . | . . . Repair Stations . | . . . Recycling Units . | . . . Scanalyzers . | . . . Garrison Access . | . . . Total Hacks 6 | . . 6 Successful 2 | . . 2 Failed 4 | . . 4 Catastrophic 1 | . . 1 Database Lockouts . | . . . Manual 2 | . . 2 Terminals 6 | . . 6 Fabricators . | . . . Repair Stations . | . . . Recycling Units . | . . . Scanalyzers . | . . . Garrison Access . | . . . Terminal Hacks 1 | . . 1 Level Access Points 1 | . . 1 Fabricator Hacks . | . . . Repair Station Hacks . | . . . Recycling Unit Hacks . | . . . Scanalyzer . | . . . Garrison Access Hacks . | . . . Unauthorized Hacks 1 | . . 1 Terminals 1 | . . 1 Assimilate 1 | . . 1 Fabricators . | . . . Repair Stations . | . . . Recycling Units . | . . . Scanalyzers . | . . . Garrison Access . | . . . Data Cores Recovered . | . . . Used . | . . . Hacking Detections 2 | . . 2 Full Trace Events 1 | . . 1 Feedback Events 1 | . . 1 Corruption 1 | . . 1 Feedback Blocked . | . . . Robot Schematics Acquired . | . . . Robots Built . | . . . Authchips . | . . . Time . | . . . Total Robot Build Rating . | . . . Part Schematics Acquired . | . . . Parts Built . | . . . Authchips . | . . . Time . | . . . Total Part Build Rating . | . . . Parts Repaired . | . . . Time . | . . . Parts Recycled . | . . . Recycled Matter . | . . . Retrieved Matter . | . . . Retrieved Components . | . . . Parts Scanalyzed . | . . . Part Schematics Acquired . | . . . Parts Damaged . | . . . Bothacking | -11 -10 -9 ------------ Run | Yrd Mat Mat Used RIF Installer . | . . . Robots Hacked . | . . . Non-combat . | . . . Combat . | . . . Robot Hacks Applied . | . . . Relay Couplers Released . | . . . Fabnet Peak Effective % . | . . . Robots Rewired . | . . . Allies Hacked . | . . . Hacks Repelled . | . . . Allies | -11 -10 -9 -------- Run | Yrd Mat Mat Total Allies 1 | . . 1 Largest Group 1 | . . 1 Highest-Rated Group 10 | . . 10 Highest-Rated Ally 10 | . . 10 Total Orders . | . . . Ally Attacks . | . . . Total Damage . | . . . Kills . | . . . Allies Corrupted . | . . . Allies Melted . | . . . Intel | -11 -10 -9 ------- Run | Yrd Mat Mat Robot Analysis Total . | . . . Derelict Logs Recovered . | . . . Drone Launches . | . . . Drone Recoveries . | . . . Exploration | -11 -10 -9 ------------- Run | Yrd Mat Mat Turns Passed 226 | 9 22 195 Spaces Moved 309 | 18 44 247 Core 249 | 18 44 187 Treads . | . . . Legs . | . . . Wheels . | . . . Hover . | . . . Flight 60 | . . 60 Fastest Speed 37 | 50 50 37 Average Speed 57 | 50 50 59 Slowest Speed 100 | 50 50 100 Overloaded Moves . | . . . Propulsion Burnouts . | . . . Robots Hopped 2 | . . 2 Cave-ins Triggered . | . . . Exploration Rate (%) 18 | 3 20 31 Regions Visited 2 Branch Regions . Pre-discovered Areas . | . . . Known Exits Taken . | . . . Unknown Exits Taken 2 | 1 1 . Scrap Searched . | . . . Spaces Dug 27 | . . 27 Terrain Destroyed 118 | . . 118 Melee 5 | . . 5 Projectile . | . . . AOE 113 | . . 113 Terrain Rammed . | . . . Walls Destroyed . | . . . Machines Disabled . | . . . Actions | -11 -10 -9 --------- Run | Yrd Mat Mat Total 338 | 17 43 278 Wait 5 | . . 5 Move 304 | 17 43 244 Hop 1 | . . 1 Pick Up 7 | . . 7 Fast Attach 6 | . . 6 Attach 3 | . . 3 Detach 2 | . . 2 Swap . | . . . Drop 1 | . . 1 Fire 3 | . . 3 Melee 6 | . . 6 Ram . | . . . Kick . | . . . Crush . | . . . Escape Stasis . | . . . Rewire . | . . . Trap . | . . . Miscellaneous . | . . . Route ------- -11/Scrapyard -10/Materials -9/Materials (discovered 3 exits: Mat x3) History --------- Turn | Location | Event 3 | -11/Scrapyard | Discovered new exit (range 14) 10 | -11/Scrapyard | Entered Materials 30 | -10/Materials | Discovered new exit (range 4) 32 | -10/Materials | Entered another Materials area 32 | -9/Materials | Evolved 2 slots: Utility x2 42 | -9/Materials | Identified exit to Materials 163 | -9/Materials | Core integrity fell below 50% 180 | -9/Materials | Core integrity fell below 20% 210 | -9/Materials | Lost 3 parts (2n1w) 227 | -9/Materials | Destroyed by Y-45 Defender with Heavy Assault Rifle Last Messages --------------- 00169_ Connecting with Terminal... 00171_ Beam Rifle destroyed. 00175_ K-01 Serf collects debris. 00179_ Sneak attack on K-01 Serf. 00179_ Destroyed Wheel. 00179_ K-01 Serf system corrupted by crushing effect. 00179_ Fusion Modulator explodes. 00179_ Destroyed Wheel. 00179_ K-01 Serf destroyed. 00179_ Flight Unit destroyed. 00179_ Destroyed Flight Unit. 00179_ Fusion Modulator explodes. 00179_ Destroyed Wheel. 00179_ Fusion Modulator explodes. 00179_ K-01 Serf destroyed. 00179_ Flight Unit destroyed. 00179_ Destroyed Flight Unit. 00179_ Fusion Modulator explodes. 00182_ Dropped Sml. Storage Unit. 00183_ Acquired Sml. Storage Unit. Map ----- +----------------------------------------------------+ | ?????????????????????????????????????????????????? | | ?????????????????????????????????????????????????? | | ?????????????????????????????????????????????????? | | ?????????????????????????????????????????????????? | | ?????????????????????????????????????????????????? | | ?????????????????????????????????????????????????? | | ???????????????????????????????????????????????? ? | | ???????????????????????????????????????????????? ? | | ???????????????????????????????????????????????? ? | | ??????#############????????????????????????????? ? | | ??????# #????????????????????????????? ? | | ??????# """ #????????????????????????????? ? | | ??????# """"" #????????????????? ??????? ? | | ??????# """"" #????????##???????# #??????# # | | ??????# """"" #????????#= ?????# #??????# # | | ??????# """ ########?# !!? # +??????# # | | ??????# "" #?# ! + #??????# # | | ??????####"#/####### #?# # #??????# # | | ???????## # ??? / #?# # #??????# # | | ????####"## #????# #?# """ """# #??????# # | | ????#** ### #????# #?# """ R"# ######?# # | | ????#** #?# #????# #?# """ "??# # ###+# | | ????#** ### ###??# #?# ????# # | | ????#** #??####+###?#+#?????# # | | ????#// ##### #?# ####### # ! | | ????#// Y @### %/[/! = | | ????##### ## / | | ????????# ### ### # | | ????????# ##### #?#+###+#######?# # # | | ????????# #???### ###?# #???## ### # | | ????????## ##?????# #???#"" #????###?# # | | ?????????# #??????# #???#"T #????????# # | | ?????????# #??????# #???#" #????????# # | | ?????????# #??????# #???# #????????# # | | ?????????# #??????# ##### #?######?# # | | ?????????# #??????# " # # #?#! ! ?# # | | ?????????# #????### #?# # # | | ?????????# #???##" ""#?# """ # # | | ?????????# #???# " ??# """ + | | ?????????# #??## " ?# """ ## | | ?????????# ####""" ?# ?# | | ?????????# " #??######### | | ?????????# ####""" " #????## | | | ?????????# #??# " ! "#?????#T | | ?????????###+###??## """" """"""#?????## | | ??????????? ?????## " ####?????#T """ | | ??????????? ??????####### ##+#????????## """ | | ?????????? ???????????? #????????????# """ | | ?????????? ????????????? #????????????# """ | | ????????? ????????????? #????????????#^ """ | +----------------------------------------------------+ Best States ------------- Heat Dissipation 28 Energy Generation 5 Energy Capacity 100 Matter Stores 100 Matter Capacity 300 Sight Range 16 Terrain Scan Density 10 Evasion (%) 62 Offensive Hacking 10 Item Schematics ----------------- None Robot Schematics ------------------ None Fabricated ------------ Nothing Alien Tech Used ----------------- None Achievements -------------- None Challenges ------------ None Game ------ Seed PortableEfficiencySegregator Manual? 0 Play Time 00:06:15 Cumulative 214.6 hours Start 2024.07.25 @ 16:11:34 End 2024.07.25 @ 16:14:55 Sessions 1 Manual Loads 0 Difficulty Rogue Special Mode None Game No. 101 Rogue 101 Adventurer 0 Explorer 0 Win Type - Total 8 Types 4/1/3/0/0/0/0/0/0 Lore% 79 Gallery% 86 Achievement% 67 Wizard Run 0 Options --------- Layout 0 ASCII 0 Keyboard 0 Movement Mouse Keybinds 0 Fullscreen 2 Font 18/SmallcapsGlow Map View 76x50 Zoom Use 0% Tactical HUD 1 Map Filters NONE Filters NONE Steam 1 RUN: 6841275f-43b9-4c0f-8235-6a8f79b3b3a2